bitfinex-derivatives/quotes_ETHF0:USTF0_20250912
["timestamp","ask_amount","ask_price","bid_price","bid_amount"]
[1757670297699,0.4928,4520.9,4520.8,0.7146]
[1757670297899,0.6855,4520.9,4520.8,2.30726407]
[1757670301203,0.1254,4521.5,4520.8,2.30726407]
[1757670301404,0.2047,4521.4,4521.3,0.4168]
[1757670301604,0.5098,4521.4,4521.3,0.7264]
[1757670301903,0.3051,4521.8,4521.5,0.1254]
[1757670302202,0.8325,4522.0,4521.9,0.2083]
[1757670302400,1.35331253,4522.0,4521.9,0.2083]
[1757670305207,0.3051,4521.9,4521.3,0.3096]
[1757670305411,0.4004,4521.4,4521.3,0.5179]
[1757670305706,0.7055,4521.4,4521.3,0.5179]
[1757670306402,0.4321,4522.0,4521.3,0.4168]
[1757670306707,0.5098,4521.5,4521.4,0.7264]
[1757670308807,0.5098,4521.9,4521.8,0.2085]
[1757670309013,0.5098,4521.9,4521.8,0.7264]
[1757670309207,0.7055,4521.9,4521.8,0.7264]
[1757670309713,0.3051,4521.9,4521.8,0.7264]
[1757670309908,0.5098,4521.9,4521.8,0.7264]
[1757670311509,0.7055,4521.9,4521.8,0.7264]
[1757670312508,0.3051,4522.4,4521.9,0.3096]
[1757670312710,0.5098,4522.3,4522.2,3.9342]
[1757670313108,0.7055,4522.9,4522.8,0.2085]
[1757670313308,0.7055,4522.9,4522.8,0.7264]
[1757670315805,0.3051,4522.9,4522.8,0.7264]
[1757670316008,3.7236,4523.5,4523.4,0.2083]
[1757670316210,4.0287,4523.5,4523.1,0.3096]
[1757670316506,3.7236,4523.5,4522.8,0.3096]
[1757670316704,0.4004,4522.9,4522.8,0.7264]
[1757670316907,0.7055,4522.9,4522.8,0.7264]
[1757670318916,0.3051,4523.4,4522.8,0.4168]
[1757670319108,0.5098,4523.4,4523.3,0.4168]
[1757670319310,0.5098,4523.4,4523.3,0.7264]
[1757670321520,0.7055,4523.4,4523.3,0.7264]
[1757670326123,0.2047,4523.5,4523.4,0.3096]
[1757670326321,0.5098,4523.5,4523.4,0.7264]
[1757670329127,0.1154,4524.0,4523.5,0.3069]
[1757670329328,0.5194,4524.0,4523.9,0.4999]
[1757670329620,0.5194,4524.0,4523.9,0.193]
[1757670329829,0.8321,4524.0,4523.9,0.193]
[1757670332143,0.2105,4523.3,4523.2,3.8994]
[1757670332446,0.7167,4523.3,4523.2,0.193]
[1757670333648,0.5232,4523.3,4523.2,0.3847]
[1757670333949,0.7167,4523.9,4523.8,0.193]
[1757670334242,0.3127,4523.8,4523.7,3.2078]
[1757670334443,0.7167,4523.3,4523.2,3.4008]
[1757670334947,0.7167,4523.3,4523.2,3.8994]
[1757670338550,0.1154,4524.0,4523.2,3.8994]
[1757670338847,0.91261175,4523.9,4523.8,0.193]
[1757670339443,1.03181175,4523.9,4523.8,0.6916]
[1757670339753,0.3127,4524.4,4523.9,0.3069]
[1757670339944,1.03201824,4524.3,4524.2,0.6916]
[1757670340444,1.22551824,4524.3,4524.2,0.6916]
[1757670341043,0.5223,4524.0,4523.9,0.193]
[1757670341649,0.5223,4524.0,4523.3,0.6916]
[1757670341650,0.5232,4523.4,4523.3,0.6916]
[1757670342249,0.7167,4523.4,4523.3,0.6916]
[1757670343750,0.7167,4523.4,4523.3,0.3847]
[1757670343945,0.3127,4523.3,4523.2,3.2078]
[1757670344148,0.7167,4522.7,4522.6,0.4999]
[1757670344347,0.3127,4522.9,4522.6,3.5925]
[1757670344551,0.3127,4522.9,4522.8,0.3847]
[1757670344751,0.5232,4522.9,4522.8,0.6916]
[1757670346353,0.3127,4523.4,4522.8,0.3847]
[1757670346660,1.03299973,4523.3,4523.2,0.6916]
[1757670347452,1.22649973,4523.3,4523.2,0.6916]
[1757670347758,0.7167,4523.3,4523.2,0.6916]
[1757670353252,0.7167,4523.3,4522.6,1.59246842]
[1757670353253,0.7167,4523.3,4522.9,0.3069]
[1757670353459,0.835,4523.0,4522.9,0.4999]
[1757670353656,0.835,4523.0,4522.9,0.193]
[1757670354458,0.835,4523.0,4522.9,0.4999]
[1757670355161,0.404,4522.7,4522.6,3.7077]
[1757670355361,0.7167,4522.7,4522.6,3.7077]
[1757670355549,0.7167,4522.7,4522.2,1.59246842]
[1757670355550,0.1183,4522.5,4522.1,3.2078]
[1757670355754,0.3127,4521.9,4521.7,1.89936842]
[1757670355958,0.404,4521.8,4521.7,0.3847]
[1757670356156,0.7167,4521.8,4521.7,0.3847]
[1757670356557,0.7167,4521.8,4521.7,0.6916]
[1757670360155,0.3163,4522.4,4521.8,0.3025]
[1757670360350,0.7157,4522.4,4522.3,0.7212]
[1757670361064,0.7157,4522.4,4522.3,0.4187]
[1757670361361,0.7157,4522.4,4521.6,3.2078]
[1757670361555,0.3163,4522.3,4521.7,0.3025]
[1757670361756,0.2048,4521.8,4521.7,0.5131]
[1757670361956,0.7157,4521.8,4521.7,0.2106]
[1757670362362,0.7157,4521.8,4521.2,1.59246842]
[1757670362554,0.7157,4521.7,4521.6,0.2106]
[1757670363264,0.7157,4521.7,4521.6,0.7212]
[1757670364261,0.7157,4521.7,4521.6,0.2106]
[1757670364557,0.5211,4521.2,4521.1,3.929]
[1757670365964,0.1154,4522.0,4521.1,3.929]
[1757670366165,0.3163,4521.9,4521.2,0.3025]
[1757670366569,0.5211,4521.3,4521.2,0.7212]
[1757670367769,0.7157,4521.9,4521.8,0.2106]
[1757670367961,0.7157,4521.9,4521.1,3.2078]
[1757670368159,0.3163,4521.8,4521.2,0.3025]
[1757670368363,0.5211,4521.3,4521.2,0.7212]
[1757670369265,0.1154,4522.0,4521.2,0.4187]
[1757670369475,0.5211,4521.9,4521.8,0.7212]
[1757670369667,0.7157,4521.9,4521.8,0.7212]
[1757670371973,0.7157,4521.9,4521.8,0.4187]
[1757670372778,0.7157,4521.9,4521.8,0.7212]
[1757670373870,0.5211,4521.9,4521.8,0.7212]
[1757670374572,0.7157,4521.9,4521.5,0.3025]
[1757670376071,0.3994,4521.9,4521.1,3.2078]
[1757670376278,3.3232,4522.0,4520.8,0.2106]
[1757670376279,0.7157,4520.9,4520.8,0.2106]
[1757670376578,0.7157,4520.9,4520.8,0.5131]
[1757670376778,0.7157,4520.9,4520.8,0.7212]
[1757670377378,3.3232,4521.5,4521.4,0.2106]
[1757670377379,3.7226,4521.5,4521.4,0.2106]
[1757670377581,3.7226,4521.5,4521.4,0.7212]
[1757670377974,4.0389,4521.5,4521.4,0.7212]
[1757670378677,0.8311,4521.5,4521.4,0.7212]
[1757670385877,0.8311,4521.5,4521.4,0.2106]
[1757670386078,0.3163,4521.4,4520.8,3.5103]
[1757670386278,0.2048,4520.9,4520.8,3.929]
[1757670386475,0.5211,4520.9,4520.8,3.929]
[1757670387890,0.5211,4520.9,4520.8,5.51568312]
[1757670388288,0.7157,4520.9,4520.8,5.51568312]
[1757670388790,0.7157,4520.9,4520.8,0.7212]
[1757670389487,0.7157,4520.9,4520.8,0.4187]
[1757670389889,0.7157,4520.9,4520.8,0.7311]
[1757670392786,0.5211,4520.9,4520.8,0.7311]
[1757670392987,0.5211,4520.9,4520.7,3.2078]
[1757670392988,0.6937,4521.4,4521.3,0.7129]
[1757670393184,4.0169,4522.0,4521.9,0.2013]
[1757670393379,4.23807,4522.0,4521.9,0.2013]
[1757670393785,4.0169,4522.0,4521.9,0.2013]
[1757670395387,4.0169,4522.0,4521.7,0.3124]
[1757670395594,0.4113,4521.5,4521.4,0.2013]
[1757670395789,0.8149,4521.5,4521.4,0.2013]
[1757670396186,0.2901,4521.4,4521.1,1.58668312]
[1757670396391,0.6937,4520.9,4520.8,0.2013]
[1757670396591,0.6937,4520.9,4520.8,0.5137]
[1757670396796,0.6937,4520.9,4520.8,0.7129]
[1757670397294,0.6937,4520.9,4520.8,0.4005]
[1757670397985,0.2901,4520.8,4520.6,1.89908312]
[1757670398180,0.6937,4520.7,4520.6,2.10038312]
[1757670398391,0.6937,4520.7,4520.6,2.29958312]
[1757670399388,0.6937,4520.7,4520.6,0.4005]
[1757670399593,0.6937,4520.7,4520.6,0.2013]
[1757670400194,0.6937,4520.7,4520.6,0.5137]
[1757670402195,0.6937,4520.7,4520.6,0.7129]
[1757670406204,0.2901,4520.9,4520.7,0.3124]
[1757670406408,0.4832,4520.9,4520.8,0.7129]
[1757670407300,0.1212,4521.5,4520.8,0.7129]
[1757670407598,0.4832,4521.0,4520.9,0.7129]
[1757670407993,0.2901,4521.4,4521.0,0.3124]
[1757670408304,0.2901,4521.4,4521.1,0.3124]
[1757670408500,0.5248,4521.5,4521.4,0.4005]
[1757670408700,0.5248,4521.5,4521.4,0.7129]
[1757670409093,0.8149,4521.5,4521.4,0.7129]
[1757670410105,0.8149,4521.5,4521.0,0.3124]
[1757670410610,0.5006,4521.4,4521.3,0.2013]
[1757670410816,0.6937,4521.4,4521.3,0.2013]
[1757670411813,0.6937,4521.4,4521.3,0.7129]
[1757670417115,0.2901,4521.8,4521.4,0.3124]
[1757670417316,0.6937,4522.4,4522.3,0.7129]
[1757670417520,0.6937,4522.4,4522.3,3.9207]
[1757670418314,0.3041,4522.8,4522.3,3.6083]
[1757670418517,0.4961,4522.8,4522.7,0.7139]
[1757670418820,0.7052,4523.4,4523.3,0.2045]
[1757670419209,0.7052,4523.4,4523.3,0.7139]
[1757670422421,3.2078,4524.4,4523.8,0.408]
[1757670422422,0.192,4523.9,4523.8,0.408]
[1757670422619,0.192,4523.9,4523.8,0.7139]
[1757670422620,0.4961,4523.9,4523.8,0.7139]
[1757670422922,0.7052,4523.9,4523.8,0.7139]
[1757670423724,3.2078,4524.4,4523.8,0.7139]
[1757670423923,0.192,4524.0,4523.9,0.3059]
[1757670424120,0.3041,4524.3,4524.1,0.3059]
[1757670424422,0.4961,4524.3,4524.2,0.7139]
[1757670426413,0.7052,4524.3,4524.2,0.7139]
[1757670426614,0.7052,4524.3,4524.2,0.408]
[1757670426817,0.7052,4524.3,4524.2,0.2045]
[1757670427518,0.1219,4524.0,4523.5,3.2078]
[1757670427724,0.8271,4523.0,4522.5,0.3059]
[1757670428228,0.192,4522.5,4522.4,0.7139]
[1757670428420,0.4961,4522.5,4522.4,0.7139]
[1757670429424,0.7052,4522.5,4522.4,0.7139]
[1757670429722,0.8271,4522.5,4522.4,0.408]
[1757670429920,0.8271,4522.5,4522.4,0.7139]
[1757670433720,0.4011,4522.1,4522.0,0.2045]
[1757670433926,0.7052,4521.7,4521.6,0.2045]
[1757670434327,0.7052,4521.7,4521.6,0.7139]
[1757670435635,0.7052,4521.7,4521.6,0.2045]
[1757670435931,0.7052,4521.4,4521.3,0.7139]
[1757670438136,4.4011,4521.4,4520.3,3.2078]
[1757670438432,0.4011,4518.6,4518.0,3.3304]
[1757670438639,0.4011,4518.6,4518.5,0.5306]
[1757670438840,3.2078,4519.2,4518.5,0.5306]
[1757670439027,0.3041,4519.5,4519.1,0.7139]
[1757670439230,0.4011,4519.2,4519.1,0.408]
[1757670439638,0.7052,4519.2,4519.1,0.408]
[1757670439834,0.7052,4519.2,4519.1,0.7139]
[1757670440433,0.4011,4519.2,4519.1,0.7139]
[1757670440936,0.3041,4520.3,4519.5,0.5306]
[1757670441238,0.7052,4519.6,4519.0,0.1226]
[1757670441445,0.7052,4519.6,4519.1,0.3059]
[1757670441639,0.7052,4519.5,4519.4,0.7139]
[1757670441941,0.192,4519.5,4519.4,0.7139]
[1757670445633,3.2078,4520.2,4519.5,0.4285]
[1757670445845,0.192,4520.2,4520.1,0.7139]
[1757670446141,0.4011,4520.2,4520.1,0.7139]
[1757670446341,0.7052,4520.2,4520.1,0.7139]
[1757670448938,3.2078,4520.7,4520.1,0.7139]
[1757670449140,0.5112,4520.3,4520.2,0.5008]
[1757670449346,0.7108,4520.3,4519.6,0.2951]
[1757670449540,0.7108,4520.3,4519.5,0.1226]
[1757670449541,0.7108,4520.3,4520.2,0.5008]
[1757670451150,0.7108,4520.3,4520.2,0.7028]
[1757670451341,3.2078,4520.7,4520.3,0.2951]
[1757670451551,0.4076,4520.4,4520.0,0.122]
[1757670451751,0.4076,4520.4,4520.0,0.4171]
[1757670452050,0.7108,4520.4,4520.3,0.5008]
[1757670452241,0.7108,4520.4,4520.3,0.7028]
[1757670453749,0.7108,4520.4,4520.0,0.122]
[1757670453952,0.4076,4520.2,4520.1,0.5008]
[1757670454253,0.7108,4520.2,4520.1,0.5008]
[1757670454448,0.7108,4520.2,4520.1,0.7028]
[1757670454847,3.2078,4520.7,4520.5,0.122]
[1757670455048,0.7108,4521.1,4521.0,0.2951]
[1757670455252,0.4076,4521.0,4520.9,0.5008]
[1757670455449,0.8331,4521.0,4520.0,0.122]
[1757670455749,0.7108,4520.2,4520.1,0.7028]
[1757670455949,0.4076,4520.2,4520.1,0.7028]
[1757670456151,3.2078,4520.7,4520.1,0.7028]
[1757670456350,3.2078,4520.7,4520.2,0.2951]
[1757670456548,3.6154,4520.7,4520.6,0.7028]
[1757670456753,3.9186,4520.7,4520.6,0.7028]
[1757670456944,3.9186,4520.7,4520.1,0.2951]
[1757670457144,4.13982001,4520.7,4520.1,0.2951]
[1757670457346,0.1996,4519.6,4519.5,0.8254]
[1757670459351,0.1996,4520.0,4519.9,0.7028]
[1757670459545,3.4074,4520.2,4520.1,0.4077]
[1757670459850,3.4074,4520.2,4520.1,0.7028]
[1757670460048,3.6154,4520.2,4520.1,0.7028]
[1757670460251,3.9186,4520.2,4520.1,0.7028]
[1757670462655,3.9186,4520.2,4519.6,0.2951]
[1757670463246,3.9186,4520.2,4520.1,0.2057]
[1757670463453,3.9186,4520.2,4520.1,0.5008]
[1757670463652,3.9186,4520.2,4520.1,0.2951]
[1757670463859,7.9186,4520.2,4519.3,0.2951]
[1757670464155,0.7108,4519.4,4519.1,0.2951]
[1757670464353,0.1996,4519.2,4519.1,0.2951]
[1757670464554,0.7108,4519.2,4519.1,0.5008]
[1757670465557,0.7108,4519.2,4518.6,0.2951]
[1757670465856,0.7108,4519.2,4519.1,0.2057]
[1757670466051,0.7108,4519.2,4519.1,0.5008]
[1757670466754,0.4076,4519.2,4518.5,0.4171]
[1757670466957,0.7108,4519.1,4519.0,0.5008]
[1757670467149,0.4076,4519.1,4519.0,0.8248]
[1757670467658,3.2078,4519.7,4519.0,0.8248]
[1757670467853,0.1996,4519.6,4519.5,0.8248]
[1757670469256,0.7108,4519.6,4519.5,0.4171]
[1757670469461,0.7108,4519.6,4519.5,0.2951]
[1757670469763,0.1996,4519.2,4519.1,0.7028]
[1757670470155,0.7108,4519.2,4519.1,0.7028]
[1757670473651,0.7108,4519.2,4518.6,0.2951]
[1757670473856,0.7108,4519.2,4518.1,0.2951]
[1757670473857,3.9186,4518.7,4518.1,0.2951]
[1757670475657,3.9186,4518.2,4518.1,0.5008]
[1757670477658,3.4074,4518.2,4518.1,0.7028]
[1757670477955,3.6197,4518.2,4518.1,0.7028]
[1757670478155,3.9316,4518.2,4518.1,0.7028]
[1757670478763,3.6197,4518.2,4518.1,0.7028]
[1757670480469,3.9316,4518.2,4518.1,0.7028]
[1757670481579,3.9316,4518.2,4517.5,0.122]
[1757670481861,3.9316,4518.2,4517.6,0.3109]
[1757670482254,0.5134,4517.4,4517.3,0.7004]
[1757670483467,0.2015,4517.4,4517.3,0.7004]
[1757670484964,0.7238,4517.4,4517.0,0.122]
[1757670485166,0.7238,4517.4,4517.0,0.3109]
[1757670485167,0.3119,4517.3,4517.0,0.3109]
[1757670485467,0.7238,4517.1,4517.0,0.3109]
[1757670485859,0.3119,4517.0,4516.9,0.1984]
[1757670486064,0.7238,4517.0,4516.9,0.5093]
[1757670486567,0.7238,4517.0,4516.7,3.2078]
[1757670486869,0.7238,4516.9,4516.8,0.5093]
[1757670487470,0.7238,4516.9,4516.8,0.7004]
[1757670488463,0.2015,4517.1,4517.0,0.1179]
[1757670488865,0.7238,4517.1,4517.0,0.5074]
[1757670489170,0.7238,4517.1,4517.0,0.8183]
[1757670489364,0.7238,4517.1,4517.0,0.7004]
[1757670491265,0.7238,4517.1,4517.0,0.8183]
[1757670491468,0.3119,4517.5,4517.1,0.3109]
[1757670491667,0.4119,4517.5,4517.4,0.7004]
[1757670491872,0.7238,4517.5,4517.4,0.7004]
[1757670493870,0.7238,4517.5,4517.4,0.3109]
[1757670494065,0.8149,4517.5,4517.0,0.1179]
[1757670494267,0.8149,4517.5,4517.1,0.0895]
[1757670494473,0.3119,4517.4,4516.8,3.2078]
[1757670494665,0.7238,4516.9,4516.8,3.5973]
[1757670494870,0.5134,4516.9,4516.8,3.5973]
[1757670495772,0.0911,4517.5,4516.8,3.5973]
[1757670495975,0.9410252,4517.4,4516.8,3.5973]
[1757670496175,0.3119,4517.4,4516.8,3.5973]
[1757670496374,3.2078,4517.7,4516.9,0.3109]
[1757670496587,1.35295475,4517.6,4517.5,0.5093]
[1757670497578,1.35295475,4517.6,4517.5,0.7004]
[1757670499779,0.7238,4517.6,4517.5,0.8183]
[1757670499975,0.5134,4517.6,4517.5,0.8183]
[1757670500175,1.18010873,4517.6,4517.5,0.8183]
[1757670500479,1.39050873,4517.6,4517.5,0.8183]
[1757670501177,0.86820873,4517.6,4517.5,0.8183]
[1757670501479,3.2078,4517.7,4517.6,0.3109]
[1757670501674,3.2078,4517.7,4517.6,0.7004]
[1757670503584,0.3119,4518.9,4517.7,0.2876]
[1757670503788,0.3119,4518.7,4517.7,0.2876]
[1757670503981,0.8396,4518.5,4518.4,0.3895]
[1757670504281,1.49335829,4518.5,4518.4,0.3895]
[1757670504480,0.3119,4518.5,4518.4,0.6771]
[1757670504677,0.3238,4519.0,4518.9,0.3895]
[1757670504984,0.97473458,4519.0,4518.9,0.6771]
[1757670505186,1.49703458,4519.0,4518.9,0.3895]
[1757670507084,5.49703458,4519.0,4517.6,0.2876]
[1757670507386,0.5134,4517.7,4517.6,0.6771]
[1757670507980,0.7238,4517.7,4517.6,0.3895]
[1757670508276,0.1968,4517.0,4516.9,0.6846]
[1757670508477,0.4949,4517.0,4516.9,0.6846]
[1757670509485,0.2981,4517.0,4516.9,0.6846]
[1757670509985,0.126,4517.5,4516.9,0.3969]
[1757670510287,0.5287,4517.5,4517.4,0.2007]
[1757670510786,0.8268,4517.5,4517.4,0.2007]
[1757670511281,0.8268,4517.5,4517.4,0.6846]
[1757670512287,0.4949,4517.5,4517.4,0.6846]
[1757670512490,0.2981,4517.5,4517.4,0.6846]
[1757670513087,0.4949,4517.5,4517.4,0.6846]
[1757670513283,0.8268,4517.5,4517.4,0.3969]
[1757670513680,0.2981,4517.4,4516.5,0.4097]
[1757670513876,0.4949,4516.9,4516.8,3.8924]
[1757670514082,0.2981,4516.9,4516.8,3.8924]
[1757670516393,0.4949,4517.4,4517.3,0.6846]
[1757670517489,0.126,4517.5,4517.3,0.6846]
[1757670517490,0.1158,4518.0,4517.4,0.2877]
[1757670517693,1.33638322,4517.9,4517.8,0.3969]
[1757670520092,1.13048322,4517.9,4517.8,0.6846]
[1757670520390,0.4949,4517.9,4517.8,0.6846]
[1757670520885,0.7008,4517.9,4517.8,0.2007]
[1757670521291,0.7008,4517.9,4517.8,0.6846]
[1757670521487,0.2981,4517.9,4517.8,0.6846]
[1757670523397,0.8231,4519.0,4518.9,0.2007]
[1757670523691,1.25019676,4519.0,4518.9,0.6845]
[1757670523893,1.12789676,4519.0,4518.9,0.6845]
[1757670524088,0.6209,4519.0,4518.9,0.6845]
[1757670524288,0.4949,4519.0,4518.9,0.6845]
[1757670524484,0.8268,4519.0,4518.9,0.3969]
[1757670527190,0.4949,4519.0,4518.9,0.6845]
[1757670527385,0.2981,4519.4,4519.3,0.3969]
[1757670527591,0.2981,4519.9,4519.4,0.2876]
[1757670527898,0.4949,4519.8,4519.7,0.6845]
[1757670528300,0.4949,4519.8,4519.7,0.3969]
[1757670528490,0.7008,4519.8,4519.7,0.3969]
[1757670530698,0.7008,4519.8,4519.7,0.2007]
[1757670531401,0.8268,4519.0,4518.9,0.3969]
[1757670532398,0.8268,4519.0,4518.9,0.6845]
[1757670535300,0.6209,4519.0,4518.9,0.6845]
[1757670536599,0.8268,4519.0,4518.4,0.2876]
[1757670536798,0.8268,4518.5,4518.4,0.2007]
[1757670537192,0.1968,4517.7,4517.6,0.4883]
[1757670537496,0.7008,4517.7,4517.6,0.3969]
[1757670538397,0.126,4518.0,4516.9,0.39841]
[1757670538604,0.6328,4517.0,4516.9,0.78731]
[1757670538791,0.6328,4517.0,4516.9,1.07491]
[1757670538992,0.5062,4517.0,4516.9,1.07491]
[1757670540097,0.5062,4517.0,4516.9,0.6765]
[1757670540302,0.8414,4517.0,4516.9,0.3889]
[1757670540595,0.3061,4516.9,4516.8,3.2078]
[1757670540800,0.7148,4516.9,4516.8,3.2078]
[1757670548702,0.7148,4516.9,4516.8,3.4045]
[1757670550105,0.7148,4516.9,4516.8,3.5967]
[1757670552406,0.7148,4516.9,4516.8,3.2078]
[1757670553607,0.7148,4516.9,4516.8,3.4045]
[1757670556508,0.7148,4516.9,4516.8,3.8843]
[1757670556806,0.7148,4516.9,4516.8,3.5967]
[1757670561209,0.7148,4516.9,4516.8,3.8843]
[1757670562411,0.7148,4516.9,4516.8,3.5967]
[1757670562812,0.7148,4516.9,4516.8,3.8843]
[1757670566309,0.3061,4517.4,4516.9,0.2876]
[1757670566513,0.3267,4517.5,4517.4,0.6765]
[1757670566910,0.6328,4517.5,4517.4,0.6765]
[1757670567416,1.44209489,4517.5,4517.4,0.3889]
[1757670568817,1.44209489,4517.5,4517.4,0.1967]
[1757670569817,0.60069489,4517.5,4517.4,0.6796]
[1757670570113,0.3101,4518.1,4517.4,0.3913]
[1757670570311,0.60144848,4518.0,4517.9,0.6748]
[1757670570709,0.91154848,4518.0,4517.9,0.6748]
[1757670571009,0.60144848,4518.0,4517.9,0.6748]
[1757670571814,0.126,4518.5,4517.9,0.3865]
[1757670572014,1.1021416,4518.4,4518.3,0.6748]
[1757670572215,1.2970416,4518.4,4518.3,0.3865]
[1757670572619,1.2970416,4518.4,4518.3,0.6748]
[1757670574219,1.2970416,4518.4,4518.3,0.3865]
[1757670575821,1.2970416,4518.4,4518.3,0.6748]
[1757670576127,1.2970416,4518.4,4518.3,0.3865]
[1757670576518,1.2970416,4518.4,4518.3,0.1919]
[1757670576923,0.5154,4517.7,4517.6,0.6748]
[1757670579322,0.7103,4517.7,4517.6,0.1919]
[1757670579530,0.2053,4517.0,4516.9,0.6748]
[1757670579733,0.5154,4517.0,4516.9,0.6748]
[1757670580033,0.3101,4517.0,4516.9,0.6748]
[1757670580333,0.1233,4518.0,4516.9,0.6748]
[1757670580630,0.4334,4518.0,4517.0,0.2883]
[1757670580929,0.6387,4518.0,4517.9,0.3865]
[1757670581127,0.126,4518.5,4518.1,0.2883]
[1757670581331,0.5262,4518.5,4518.4,0.3865]
[1757670581833,0.8363,4518.5,4518.4,0.3865]
[1757670582230,0.8363,4518.5,4518.4,0.1919]
[1757670582634,0.8363,4518.5,4517.8,0.2883]
[1757670583333,0.8336,4518.0,4517.3,0.2883]
[1757670586037,0.8336,4518.0,4517.9,0.1919]
[1757670589338,0.1233,4517.5,4517.1,0.2881]
[1757670589539,0.7103,4516.9,4516.8,3.5943]
[1757670590026,0.7103,4516.9,4516.8,3.3997]
[1757670591136,0.7103,4516.9,4516.8,3.2078]
[1757670593233,0.7103,4516.9,4515.3,1.76644039]
[1757670593234,4.4002,4516.9,4516.0,0.1193]
[1757670593442,0.57813498,4516.8,4516.5,0.1193]
[1757670593636,0.57813498,4516.7,4516.5,0.1193]
[1757670593938,0.57813498,4516.6,4516.5,0.1193]
[1757670594139,0.57813498,4516.9,4515.5,0.1193]
[1757670594336,1.18730791,4516.3,4515.5,0.1193]
[1757670594531,0.57813498,4516.2,4516.0,0.1193]
[1757670594738,0.57813498,4516.1,4516.0,0.1193]
[1757670595238,4.57813498,4516.1,4516.0,0.435]
[1757670595439,4.79956499,4516.1,4516.0,0.435]
[1757670595641,4.79956499,4516.1,4515.5,0.1193]
[1757670595845,0.79957498,4516.0,4515.5,0.1193]
[1757670596138,0.57813498,4515.9,4515.5,0.1193]
[1757670596448,0.57813498,4515.8,4515.5,0.1193]
[1757670596646,0.57813498,4515.7,4515.5,0.1193]
[1757670596849,0.17292656,4516.0,4515.5,0.1193]
[1757670597045,4.57573798,4515.9,4515.5,0.1193]
[1757670597248,0.57573798,4515.8,4515.5,0.1193]
[1757670597447,0.57573798,4515.7,4515.5,0.1193]
[1757670597649,1.18730791,4516.7,4515.6,0.3157]
[1757670597951,0.57520539,4516.6,4515.6,0.3157]
[1757670598151,0.57520539,4516.5,4516.0,0.1157]
[1757670598352,4.57520539,4516.5,4516.0,0.4216]
[1757670598554,0.57520539,4516.4,4516.1,0.3059]
[1757670598854,0.57520539,4516.3,4516.0,0.1157]
[1757670599053,0.57520539,4516.2,4516.1,0.3059]
[1757670599455,21.2,4516.6,4516.5,0.1157]
[1757670599751,0.57440276,4516.6,4516.5,0.1157]
[1757670601154,4.57440276,4516.6,4516.5,0.4216]
[1757670601558,4.57440276,4516.6,4516.5,0.1157]
[1757670601857,4.57440276,4516.6,4516.1,0.1589]
[1757670602056,0.57440276,4516.5,4516.0,0.1157]
[1757670602256,0.57440276,4516.4,4516.0,0.3083]
[1757670602454,21.37661729,4517.1,4516.0,0.3083]
[1757670602655,0.57375363,4517.0,4516.0,0.1157]
[1757670602857,0.57375363,4516.9,4516.0,0.1157]
[1757670603054,0.57375363,4516.8,4516.5,0.1157]
[1757670603258,0.17263823,4517.7,4516.5,0.1157]
[1757670603454,0.57370563,4517.6,4516.5,0.1157]
[1757670603654,0.57370563,4517.5,4516.5,0.1157]
[1757670603954,0.57370563,4517.4,4516.6,0.3059]
[1757670604154,0.57370563,4517.3,4516.6,0.3059]
[1757670604358,0.57370563,4517.2,4517.0,0.1157]
[1757670604562,1.97164242,4517.8,4517.1,0.3059]
[1757670604861,0.57374946,4517.7,4517.1,0.3059]
[1757670605061,0.57374946,4517.6,4517.5,0.1157]
[1757670605260,0.57374946,4517.6,4517.2,0.3059]
[1757670605455,0.57374946,4517.6,4517.0,0.1157]
[1757670605456,0.57374946,4517.5,4517.0,0.1157]
[1757670605857,0.57374946,4517.5,4517.1,0.3059]
[1757670606162,4.57374946,4517.4,4517.0,0.1157]
[1757670606366,0.57374946,4517.3,4517.1,0.3059]
[1757670606561,1.18730791,4518.2,4517.2,0.3059]
[1757670606861,0.57387105,4518.1,4517.2,0.3059]
[1757670607055,1.18730791,4518.2,4517.2,0.3059]
[1757670607056,0.57387105,4518.0,4517.5,0.1157]
[1757670607256,0.57387105,4517.9,4517.6,0.3059]
[1757670607462,0.57387105,4517.9,4517.5,0.1157]
[1757670607656,0.57387105,4517.8,4517.6,0.3059]
[1757670607858,0.57387105,4517.7,4517.6,0.3059]
[1757670608061,4.0,4517.8,4517.5,0.1157]
[1757670608262,0.57387105,4517.7,4517.5,0.1157]
[1757670608464,0.57387105,4517.6,4517.0,0.1157]
[1757670608765,0.57387105,4517.5,4516.5,0.1157]
[1757670608960,0.57387105,4517.4,4516.5,0.1157]
[1757670609160,0.57387105,4517.3,4517.0,0.1157]
[1757670609360,0.57387105,4517.2,4517.0,0.1157]
[1757670609564,0.57387105,4517.1,4517.0,0.1157]
[1757670609863,0.57387105,4517.7,4517.0,0.1157]
[1757670611153,0.57387105,4517.7,4517.1,0.4985]
[1757670611354,1.76117896,4517.7,4517.5,0.1157]
[1757670611558,0.57387105,4517.6,4517.5,0.1157]
[1757670612266,0.57387105,4517.6,4517.5,0.6142]
[1757670612563,0.57485051,4517.7,4517.5,0.3083]
[1757670612768,0.57485051,4517.6,4516.5,0.0388]
[1757670612957,0.0315,4516.6,4516.5,0.4267]
[1757670613161,0.0195,4517.3,4516.6,0.3059]
[1757670613463,0.063,4517.1,4517.0,0.6142]
[1757670613658,0.63794475,4517.1,4517.0,0.6142]
[1757670617163,0.63794475,4517.1,4517.0,0.4216]
[1757670617866,0.63794475,4517.1,4517.0,0.6142]
[1757670618368,0.57494475,4517.1,4517.0,0.8095]